fUST/lending_fUST_20260111
["ID","MTS","AMOUNT","RATE_DAILY","PERIOD"]
[401246713,1768070956770,794.79,7.954e-05,2]
[401246714,1768070957168,883.1,8.228e-05,2]
[401246735,1768071032720,-165.7,9.795e-05,2]
[401246736,1768071032730,-193.32,0.00010172,2]
[401246737,1768071032740,-220.94,0.00010549,2]
[401246738,1768071032749,-248.56,0.00010926,2]
[401246739,1768071032759,-300.0,0.00010958,2]
[401246740,1768071032768,-300.0,0.00010958,2]
[401246741,1768071032778,-300.0,0.00010958,2]
[401246742,1768071032787,-1200.0,0.00010958,2]
[401246743,1768071032797,-574.0,0.00010958,2]
[401246744,1768071032806,-1500.0,0.00010959,2]
[401246745,1768071032815,-1500.0,0.00010959,2]
[401246746,1768071032824,-1500.0,0.00010959,2]
[401246747,1768071032839,-2078.033271,0.00010959,2]
[401246748,1768071032848,-420.0,0.00012042,2]
[401246749,1768071032858,-1680.0,0.00012054,2]
[401246750,1768071032867,-10154.38055533,0.00012111,2]
[401246751,1768071032876,-624.02842438,0.00012251,2]
[401246752,1768071032886,-64023.28275331,0.00012252,2]
[401246753,1768071032897,-459.76,0.00012252,2]
[401246770,1768071038623,-300.0,0.00011176,2]
[401246771,1768071038634,-300.0,0.00011176,2]
[401246772,1768071038644,-300.0,0.00011176,2]
[401246773,1768071038654,-300.0,0.00011176,2]
[401246774,1768071038664,-300.0,0.00011176,2]
[401246775,1768071038674,-300.0,0.00011176,2]
[401246776,1768071038683,-300.0,0.00011176,2]
[401246777,1768071038693,-300.0,0.00011176,2]
[401246778,1768071038702,-300.0,0.00011176,2]
[401246779,1768071038712,-300.0,0.00011176,2]
[401246780,1768071038722,-300.0,0.00011176,2]
[401246781,1768071038733,-276.17,0.00011302,2]
[401246783,1768071038745,-500.0,0.00012251,2]
[401246785,1768071038755,-500.0,0.00012251,2]
[401246786,1768071038765,-500.0,0.00012251,2]
[401246787,1768071038775,-500.0,0.00012251,2]
[401246788,1768071038787,-500.0,0.00012251,2]
[401246790,1768071038798,-500.0,0.00012251,2]
[401246792,1768071038808,-500.0,0.00012251,2]
[401246796,1768071038819,-500.0,0.00012251,2]
[401246797,1768071038829,-500.0,0.00012251,2]
[401246798,1768071038839,-454.82940818,0.00012251,2]
[401246799,1768071038849,-500.0,0.00012251,2]
[401246800,1768071038859,-500.0,0.00012251,2]
[401246801,1768071038869,-500.0,0.00012251,2]
[401246802,1768071038879,-500.0,0.00012251,2]
[401246803,1768071038890,-500.0,0.00012251,2]
[401246804,1768071038900,-300.0,0.00012251,2]
[401246805,1768071038910,-500.0,0.00012251,2]
[401246806,1768071038921,-500.0,0.00012251,2]
[401246807,1768071038931,-500.0,0.00012251,2]
[401246808,1768071038941,-500.0,0.00012251,2]
[401246809,1768071038952,-500.0,0.00012251,2]
[401246810,1768071038962,-500.0,0.00012251,2]
[401246811,1768071038972,-500.0,0.00012251,2]
[401246812,1768071038982,-500.0,0.00012251,2]
[401246813,1768071038992,-500.0,0.00012251,2]
[401246814,1768071039003,-500.0,0.00012251,2]
[401246815,1768071039012,-500.0,0.00012251,2]
[401246816,1768071039022,-500.0,0.00012251,2]
[401246817,1768071039032,-500.0,0.00012251,2]
[401246818,1768071039042,-500.0,0.00012251,2]
[401246819,1768071039051,-400.0,0.00012251,2]
[401246820,1768071039060,-500.0,0.00012251,2]
[401246821,1768071039070,-500.0,0.00012251,2]
[401246822,1768071039079,-500.0,0.00012251,2]
[401246823,1768071039088,-500.0,0.00012251,2]
[401246824,1768071039098,-935516.95724669,0.00012252,2]
[401246825,1768071039107,-2017.09,0.00012329,2]
[401246826,1768071039116,-11541.37,0.00012329,2]
[401246827,1768071039126,-9617.81,0.00012329,2]
[401246828,1768071039136,-8014.84,0.00012329,2]
[401246829,1768071039146,-6679.04,0.00012329,2]
[401246830,1768071039156,-5565.86,0.00012329,2]
[401246831,1768071039165,-4638.22,0.00012329,2]
[401246832,1768071039175,-3865.18,0.00012329,2]
[401246833,1768071039185,-500.0,0.00012329,2]
[401246834,1768071039194,-500.0,0.00012329,2]
[401246835,1768071039204,-500.0,0.00012329,2]
[401246836,1768071039213,-500.0,0.00012329,2]
[401246837,1768071039223,-500.0,0.00012329,2]
[401246838,1768071039233,-500.0,0.00012329,2]
[401246839,1768071039243,-500.0,0.00012329,2]
[401246840,1768071039252,-500.0,0.00012329,2]
[401246841,1768071039262,-500.0,0.00012329,2]
[401246842,1768071039272,-500.0,0.00012329,2]
[401246843,1768071039282,-500.0,0.00012329,2]
[401246844,1768071039293,-500.0,0.00012329,2]
[401246845,1768071039303,-500.0,0.00012329,2]
[401246846,1768071039312,-500.0,0.00012329,2]
[401246847,1768071039322,-500.0,0.00012329,2]
[401246848,1768071039331,-500.0,0.00012329,2]
[401246849,1768071039340,-500.0,0.00012329,2]
[401246850,1768071039349,-500.0,0.00012329,2]
[401246851,1768071039359,-515.0,0.00012329,2]
[401246852,1768071039369,-500.0,0.00012329,2]
[401246853,1768071039378,-500.0,0.00012329,2]
[401246854,1768071039387,-500.0,0.00012329,2]
[401246855,1768071039397,-500.0,0.00012329,2]
[401246856,1768071039406,-500.0,0.00012329,2]
[401246857,1768071039416,-50000.0,0.00012352,2]
[401246858,1768071039425,-186.40824943,0.00012415,2]
[401246859,1768071039434,-1006.29911303,0.00012899,2]
[401246860,1768071039444,-587.0,0.00013234,2]
[401246861,1768071039454,-2351.0,0.00013259,2]
[401246862,1768071039463,-177.0,0.00013535,2]
[401246863,1768071039473,-509.39,0.00013698,2]
[401246864,1768071039482,-509.39,0.00013698,2]
[401246865,1768071039493,-509.39,0.00013698,2]
[401246866,1768071039503,-150.1,0.00013699,2]
[401246867,1768071039512,-500.0,0.00013699,2]
[401246868,1768071039522,-500.0,0.00014078,2]
[401246869,1768071039533,-509.39,0.0001423,2]
[401246870,1768071039543,-509.39,0.0001423,2]
[401246871,1768071039553,-509.39,0.0001423,2]
[401246872,1768071039563,-509.39,0.0001423,2]
[401246873,1768071039572,-509.39,0.0001423,2]
[401246874,1768071039581,-1000.0,0.00014247,2]
[401246875,1768071039591,-500.0,0.00014352,2]
[401246876,1768071039601,-21260.784218,0.00014352,2]
[401246877,1768071039610,-250.0,0.0001448,2]
[401246878,1768071039620,-823.0,0.00014543,2]
[401246879,1768071039629,-2400.0,0.00014585,2]
[401246880,1768071039639,-500.0,0.00014626,2]
[401246881,1768071039649,-1500.0,0.00014795,2]
[401246882,1768071039658,-509.39,0.00015243,2]
[401246883,1768071039667,-498.9723282,0.00015342,2]
[401246884,1768071039676,-204.0,0.00015535,2]
[401246885,1768071039685,-677.0,0.00015982,2]
[401246886,1768071039696,-509.39,0.00016117,2]
[401246887,1768071039705,-260.11060349,0.00016438,2]
[401246888,1768071039715,-231.0,0.00017535,2]
[401246889,1768071039724,-258.0,0.00019535,2]
[401246890,1768071039733,-334.23,0.000196,2]
[401246891,1768071039745,-151.0,0.00021,3]
[401246892,1768071039754,-285.0,0.00021535,2]
[401246893,1768071039763,-285.0,0.00022011,2]
[401246894,1768071039773,-151.0,0.000231,10]
[401246895,1768071039782,-312.0,0.00023535,2]
[401246896,1768071039791,-161.0,0.00024932,14]
[401246897,1768071039801,-151.0,0.00025,5]
[401246898,1768071039810,-500.0,0.00025069,2]
[401246899,1768071039819,-167.46972508,0.00025069,2]
[401246900,1768071039829,-500.0,0.00025206,2]
[401246901,1768071039838,-151.0,0.000253,19]
[401246902,1768071039847,-500.0,0.00025343,2]
[401246903,1768071039857,-500.0,0.0002548,2]
[401246904,1768071039866,-339.0,0.00025535,2]
[401246905,1768071039876,-381.88170042,0.00025617,2]
[401246906,1768071039885,-151.0,0.000272,11]
[401246907,1768071039894,-334.23,0.000272,14]
[401246908,1768071039904,-151.0,0.000274,11]
[401246909,1768071039914,-366.0,0.00027535,2]
[401246910,1768071039924,-151.0,0.000293,17]
[401246911,1768071039934,-151.0,0.000295,12]
[401246912,1768071039944,-151.0,0.000295,12]
[401246913,1768071039953,-393.0,0.00029535,2]
[401246914,1768071039963,-509.39,0.00030369,2]
[401246915,1768071039973,-351.295,0.0003037,26]
[401246916,1768071039983,-151.0,0.000315,12]
[401246917,1768071039992,-420.0,0.00031535,2]
[401246918,1768071040002,-151.0,0.000316,12]
[401246919,1768071040011,-151.0,0.000316,17]
[401246920,1768071040021,-9999.3338094,0.00032648,2]
[401246921,1768071040030,-731.96785671,0.00032876,120]
[401246922,1768071040040,-416.91,0.00032877,10]
[401246923,1768071040049,-312.48347739,0.00033133,2]
[401246924,1768071040059,-151.6053793,0.000332,117]
[401246925,1768071040068,-447.0,0.00033535,120]
[401246926,1768071040078,-210.0,0.00033699,5]
[401246927,1768071040088,-151.0,0.000337,11]
[401246929,1768071040098,-151.0,0.000337,19]
[401246931,1768071040107,-151.0,0.000337,20]
[401246932,1768071040117,-352.89,0.000337,11]
[401246933,1768071040128,-152.95,0.00034297,60]
[401246934,1768071040138,-152.95,0.00034397,60]
[401246935,1768071040147,-152.95,0.00034497,60]
[401246936,1768071040157,-270.0,0.00034521,5]
[401246937,1768071040166,-152.95,0.00034597,60]
[401246938,1768071040175,-334.23,0.000346,30]
[401246939,1768071040185,-152.95,0.00034697,60]
[401246940,1768071040195,-624.0,0.00034704,30]
[401246941,1768071040205,-324.5,0.00034704,30]
[401246942,1768071040215,-152.95,0.00034797,60]
[401246943,1768071040225,-152.95,0.00034897,60]
[401246944,1768071040235,-5058.79910613,0.00034994,51]
[401246945,1768071040243,-152.95,0.00034997,60]
[401246947,1768071040253,-152.95,0.00035097,60]
[401246948,1768071040263,-152.95,0.00035197,60]
[401246950,1768071040273,-152.95,0.00035297,60]
[401246952,1768071040284,-330.0,0.00035342,5]
[401246954,1768071040294,-152.95,0.00035397,60]
[401246957,1768071040303,-152.95,0.00035497,60]
[401246958,1768071040313,-380.86648039,0.00035535,120]
[401246959,1768071040323,-152.95,0.00035597,60]
[401246960,1768071040332,-500.0,0.00035616,30]
[401246961,1768071040343,-334.34878739,0.00035616,7]
[401246962,1768071040354,-152.95,0.00035697,60]
[401246963,1768071040364,-152.95,0.00035797,60]
[401246964,1768071040374,-2350.9741358,0.000358,2]
[401246965,1768071040384,-509.39,0.00035863,2]
[401246966,1768071040394,-509.39,0.00035863,2]
[401246967,1768071040405,-509.39,0.00035863,2]
[401246968,1768071040416,-509.39,0.00035863,2]
[401246969,1768071040426,-509.39,0.00035863,2]
[401246970,1768071040437,-509.39,0.00035863,2]
[401246971,1768071040448,-509.39,0.00035863,2]
[401246972,1768071040458,-509.39,0.00035863,2]
[401246973,1768071040468,-509.39,0.00035863,2]
[401246974,1768071040477,-509.39,0.00035863,2]
[401246975,1768071040487,-509.39,0.00035863,2]
[401246976,1768071040496,-509.39,0.00035863,2]
[401246978,1768071040506,-509.41047474,0.00035863,2]
[401246980,1768071040515,-153.0,0.00035897,60]
[401246981,1768071040525,-151.0,0.000359,20]
[401246983,1768071040534,-151.0,0.000359,12]
[401246985,1768071040544,-151.0,0.000359,18]
[401246988,1768071040554,-151.0,0.000359,11]
[401246990,1768071040563,-151.0,0.000359,13]
[401246992,1768071040573,-151.0,0.000359,12]
[401246994,1768071040582,-151.0,0.000359,15]
[401246996,1768071040593,-151.0,0.000359,12]
[401246997,1768071040602,-151.0,0.000359,18]
[401246999,1768071040612,-151.0,0.000359,13]
[401247001,1768071040621,-5315.88,0.000359,14]
[401247003,1768071040630,-327905.18107711,0.00035937,4]
[401247005,1768071040640,-2350.97413579,0.00036003,2]
[401247007,1768071040649,-500.0,0.00036164,30]
[401247009,1768071040658,-180.020001,0.00036164,5]
[401247010,1768071040668,-2350.97413579,0.00036206,2]
[401247013,1768071040678,-2350.97413579,0.00036409,2]
[401247014,1768071040688,-285.51750132,0.00036612,2]
[401247016,1768071040697,-2350.97413579,0.00036612,2]
[401247018,1768071040707,-285.51750124,0.00036648,2]
[401247020,1768071040716,-285.51750124,0.00036684,2]
[401247022,1768071040726,-334.23,0.000367,30]
[401247024,1768071040736,-500.0,0.00036712,30]
[401247026,1768071040745,-500.0,0.00036712,30]
[401247028,1768071040755,-500.0,0.00036712,2]
[401247030,1768071040764,-500.0,0.00036712,2]
[401247032,1768071040774,-500.0,0.00036712,2]
[401247034,1768071040783,-500.0,0.00036712,2]
[401247036,1768071040793,-500.0,0.00036712,2]
[401247038,1768071040803,-500.0,0.00036712,2]
[401247040,1768071040812,-500.0,0.00036712,2]
[401247042,1768071040822,-500.0,0.00036712,2]
[401247043,1768071040832,-500.0,0.00036712,2]
[401247045,1768071040841,-2479.36,0.00036712,30]
[401247047,1768071040850,-2479.36,0.00036712,30]
[401247049,1768071040859,-2479.36,0.00036712,30]
[401247051,1768071040868,-2479.36,0.00036712,30]
[401247053,1768071040877,-16189.62,0.00036712,30]
[401247055,1768071040886,-2479.36,0.00036712,30]
[401247057,1768071040896,-16189.62,0.00036712,30]
[401247059,1768071040904,-2479.36,0.00036712,30]
[401247061,1768071040914,-16189.62,0.00036712,30]
[401247063,1768071040923,-2479.36,0.00036712,30]
[401247065,1768071040933,-16189.62,0.00036712,30]
[401247067,1768071040942,-2479.36,0.00036712,30]
[401247069,1768071040952,-16189.62,0.00036712,30]
[401247070,1768071040961,-16189.62,0.00036712,30]
[401247083,1768071040970,-16189.62,0.00036712,30]
[401247086,1768071041089,-16189.62,0.00036712,30]
[401247088,1768071041098,-16189.62,0.00036712,30]
[401247090,1768071041107,-16189.62,0.00036712,30]
[401247092,1768071041119,-2479.36,0.00036712,30]
[401247094,1768071041128,-2479.36,0.00036712,30]
[401247096,1768071041137,-16189.62,0.00036712,30]
[401247098,1768071041146,-2479.36,0.00036712,30]
[401247100,1768071041156,-16189.62,0.00036712,30]
[401247101,1768071041164,-2479.36,0.00036712,30]
[401247103,1768071041174,-16189.62,0.00036712,30]
[401247105,1768071041183,-2479.36,0.00036712,30]
[401247107,1768071041192,-16189.62,0.00036712,30]
[401247109,1768071041202,-2479.36,0.00036712,30]
[401247111,1768071041211,-16189.62,0.00036712,30]
[401247113,1768071041220,-2479.36,0.00036712,30]
[401247115,1768071041229,-16189.62,0.00036712,30]
[401247117,1768071041238,-2479.36,0.00036712,30]
[401247119,1768071041247,-16189.62,0.00036712,30]
[401247121,1768071041256,-2479.36,0.00036712,30]
[401247123,1768071041265,-16189.62,0.00036712,30]
[401247125,1768071041274,-2479.36,0.00036712,30]
[401247127,1768071041283,-16189.62,0.00036712,30]
[401247129,1768071041292,-2479.36,0.00036712,30]
[401247131,1768071041301,-16189.62,0.00036712,30]
[401247133,1768071041310,-2479.36,0.00036712,30]
[401247135,1768071041320,-16189.62,0.00036712,30]
[401247137,1768071041329,-2479.36,0.00036712,30]
[401247139,1768071041338,-16189.62,0.00036712,30]
[401247140,1768071041347,-2479.36,0.00036712,30]
[401247142,1768071041356,-16189.62,0.00036712,30]
[401247144,1768071041366,-2479.36,0.00036712,30]
[401247146,1768071041375,-16189.70100427,0.00036712,30]
[401247148,1768071041385,-2479.42,0.00036712,30]
[401247150,1768071041396,-2195.79,0.00036712,30]
[401247152,1768071041406,-2195.79,0.00036712,30]
[401247154,1768071041415,-2195.79,0.00036712,30]
[401247156,1768071041425,-4887.27,0.00036712,30]
[401247158,1768071041434,-2195.79,0.00036712,30]
[401247160,1768071041444,-4887.27,0.00036712,30]
[401247162,1768071041454,-2195.79,0.00036712,30]
[401247164,1768071041463,-4887.27,0.00036712,30]
[401247166,1768071041472,-2195.79,0.00036712,30]
[401247168,1768071041481,-2195.79,0.00036712,30]
[401247170,1768071041491,-4887.27,0.00036712,30]
[401247172,1768071041500,-2195.79,0.00036712,30]
[401247174,1768071041510,-4887.27,0.00036712,30]
[401247176,1768071041519,-2195.79,0.00036712,30]
[401247178,1768071041528,-4887.27,0.00036712,30]
[401247180,1768071041538,-2195.79,0.00036712,30]
[401247182,1768071041547,-4887.27,0.00036712,30]
[401247183,1768071041556,-2195.79,0.00036712,30]
[401247185,1768071041565,-4887.27,0.00036712,30]
[401247187,1768071041574,-2195.79,0.00036712,30]
[401247189,1768071041585,-4887.27,0.00036712,30]
[401247191,1768071041594,-2195.79,0.00036712,30]
[401247193,1768071041604,-2195.79,0.00036712,30]
[401247195,1768071041613,-4887.27,0.00036712,30]
[401247197,1768071041622,-2195.79,0.00036712,30]
[401247199,1768071041631,-4887.27,0.00036712,30]
[401247201,1768071041640,-2195.79,0.00036712,30]
[401247203,1768071041649,-4887.27,0.00036712,30]
[401247205,1768071041659,-2195.79,0.00036712,30]
[401247207,1768071041670,-4887.27,0.00036712,30]
[401247209,1768071041680,-2195.79,0.00036712,30]
[401247211,1768071041689,-4887.27,0.00036712,30]
[401247213,1768071041699,-2195.79,0.00036712,30]
[401247215,1768071041710,-4887.27,0.00036712,30]
[401247217,1768071041719,-2195.79,0.00036712,30]
[401247219,1768071041728,-4887.27,0.00036712,30]
[401247221,1768071041741,-4887.27,0.00036712,30]
[401247223,1768071041750,-2195.79,0.00036712,30]
[401247225,1768071041760,-4887.27,0.00036712,30]
[401247227,1768071041769,-2195.79,0.00036712,30]
[401247229,1768071041779,-4887.27,0.00036712,30]
[401247231,1768071041789,-2195.79,0.00036712,30]
[401247233,1768071041799,-4887.27,0.00036712,30]
[401247235,1768071041810,-2195.88,0.00036712,30]
[401247237,1768071041821,-4887.27,0.00036712,30]
[401247239,1768071041830,-4887.27,0.00036712,30]
[401247241,1768071041839,-4887.27,0.00036712,30]
[401247243,1768071041852,-4887.3,0.00036712,30]
[401247245,1768071041862,-2192.87,0.00036712,30]
[401247247,1768071041871,-2192.87,0.00036712,30]
[401247250,1768071041884,-2192.87,0.00036712,30]
[401247252,1768071041894,-2192.87,0.00036712,30]
[401247253,1768071041904,-2192.87,0.00036712,30]
[401247256,1768071041920,-2192.87,0.00036712,30]
[401247257,1768071041931,-2192.87,0.00036712,30]
[401247259,1768071041941,-2192.87,0.00036712,30]
[401247261,1768071041950,-2192.87,0.00036712,30]
[401247263,1768071041960,-2192.87,0.00036712,30]
[401247264,1768071041969,-2192.87,0.00036712,30]
[401247266,1768071041979,-2192.87,0.00036712,30]
[401247268,1768071041988,-2192.87,0.00036712,30]
[401247270,1768071041997,-2192.87,0.00036712,30]
[401247272,1768071042006,-2192.87,0.00036712,30]
[401247274,1768071042016,-2192.87,0.00036712,30]
[401247276,1768071042024,-2192.87,0.00036712,30]
[401247278,1768071042033,-2192.87,0.00036712,30]
[401247280,1768071042042,-2192.87,0.00036712,30]
[401247282,1768071042052,-2192.87,0.00036712,30]
[401247284,1768071042061,-2192.87,0.00036712,30]
[401247286,1768071042074,-2192.87,0.00036712,30]
[401247288,1768071042083,-2192.87,0.00036712,30]
[401247290,1768071042092,-2192.89,0.00036712,30]
[401247292,1768071042102,-241.15003758,0.00036712,120]
[401247294,1768071042110,-26257.46,0.00036712,30]
[401247296,1768071042119,-26257.46,0.00036712,30]
[401247298,1768071042129,-26257.46,0.00036712,30]
[401247300,1768071042138,-26257.46,0.00036712,30]
[401247302,1768071042147,-26257.46,0.00036712,30]
[401247304,1768071042156,-26257.46,0.00036712,30]
[401247306,1768071042165,-26257.46,0.00036712,30]
[401247308,1768071042174,-26257.46,0.00036712,30]
[401247310,1768071042183,-26257.46,0.00036712,30]
[401247312,1768071042192,-26257.46,0.00036712,30]
[401247314,1768071042201,-26257.46,0.00036712,30]
[401247316,1768071042210,-26257.46,0.00036712,30]
[401247318,1768071042219,-26257.46,0.00036712,30]
[401247320,1768071042228,-26257.46,0.00036712,30]
[401247322,1768071042237,-26257.46,0.00036712,30]
[401247324,1768071042246,-26257.46,0.00036712,30]
[401247326,1768071042255,-26257.46,0.00036712,30]
[401247328,1768071042264,-26257.46,0.00036712,30]
[401247329,1768071042274,-26257.46,0.00036712,30]
[401247331,1768071042284,-26257.46,0.00036712,30]
[401247333,1768071042294,-26257.46,0.00036712,30]
[401247335,1768071042305,-26257.46,0.00036712,30]
[401247337,1768071042314,-26257.46,0.00036712,30]
[401247339,1768071042323,-26257.54452659,0.00036712,30]
[401247341,1768071042332,-5048.48,0.00036712,30]
[401247343,1768071042341,-5048.48,0.00036712,30]
[401247345,1768071042350,-5048.48,0.00036712,30]
[401247347,1768071042359,-5048.48,0.00036712,30]
[401247349,1768071042368,-5048.48,0.00036712,30]
[401247351,1768071042377,-5048.48,0.00036712,30]
[401247353,1768071042386,-5048.48,0.00036712,30]
[401247354,1768071042396,-5048.48,0.00036712,30]
[401247356,1768071042405,-5048.48,0.00036712,30]
[401247358,1768071042413,-5048.48,0.00036712,30]
[401247360,1768071042424,-5048.48,0.00036712,30]
[401247362,1768071042433,-5048.48,0.00036712,30]
[401247364,1768071042442,-5048.48,0.00036712,30]
[401247366,1768071042451,-5048.48,0.00036712,30]
[401247368,1768071042460,-5048.48,0.00036712,30]
[401247370,1768071042470,-5048.48,0.00036712,30]
[401247372,1768071042480,-5048.48,0.00036712,30]
[401247374,1768071042490,-5048.48,0.00036712,30]
[401247376,1768071042499,-5048.48,0.00036712,30]
[401247378,1768071042508,-5048.48,0.00036712,30]
[401247380,1768071042518,-5048.48,0.00036712,30]
[401247382,1768071042527,-5048.48,0.00036712,30]
[401247384,1768071042536,-5048.48,0.00036712,30]
[401247386,1768071042546,-5048.65,0.00036712,30]
[401247388,1768071042555,-532.55,0.00036712,30]
[401247390,1768071042563,-285.51750124,0.00036721,2]
[401247392,1768071042574,-586.86139898,0.00036743,2]
[401247394,1768071042583,-285.51750124,0.00036757,2]
[401247396,1768071042592,-285.51750124,0.00036793,2]
[401247398,1768071042602,-285.51750124,0.00036829,2]
[401247400,1768071042611,-175.32284976,0.00036836,20]
[401247402,1768071042620,-500.0,0.00036836,20]
[401247404,1768071042630,-175.48554534,0.00036836,20]
[401247406,1768071042639,-213.97622948,0.00036836,20]
[401247408,1768071042650,-258.38,0.00036836,2]
[401247410,1768071042659,-1112.0,0.00036859,2]
[401247412,1768071042669,-1112.0,0.0003686,3]
[401247413,1768071042677,-1112.0,0.00036861,4]
[401247415,1768071042686,-1112.0,0.00036862,5]
[401247417,1768071042695,-1112.0,0.00036863,6]
[401247419,1768071042705,-1112.0,0.00036864,7]
[401247421,1768071042713,-285.51750124,0.00036866,2]
[401247423,1768071042721,-285.51750124,0.00036902,2]
[401247424,1768071042730,-285.51750124,0.00036938,2]
[401247427,1768071042744,-500.0,0.00036973,20]
[401247428,1768071042753,-272.09209533,0.0003703,30]
[401247430,1768071042763,-170.12005958,0.0003703,30]
[401247432,1768071042772,-170.12005958,0.00037031,30]
[401247435,1768071042782,-170.12005958,0.00037031,30]
[401247436,1768071042791,-170.12005958,0.00037032,30]
[401247438,1768071042800,-170.12005958,0.00037033,30]
[401247440,1768071042810,-170.12005958,0.00037033,30]
[401247442,1768071042820,-170.12005958,0.00037034,30]
[401247444,1768071042829,-170.12005958,0.00037034,30]
[401247447,1768071042839,-170.12005958,0.00037035,30]
[401247448,1768071042848,-1112.0,0.00037035,8]
[401247450,1768071042857,-170.12005958,0.00037036,30]
[401247452,1768071042866,-23341.3691819,0.00037036,2]
[401247454,1768071042876,-3095.4907844,0.00037036,2]
[401247456,1768071042886,-170.12005958,0.00037036,30]
[401247458,1768071042894,-1112.0,0.00037037,9]
[401247460,1768071042904,-918.54832174,0.00037037,20]
[401247462,1768071042913,-163.471192,0.00037037,31]
[401247464,1768071042923,-151.0,0.00037037,31]
[401247466,1768071042932,-157.421281,0.00037037,31]
[401247467,1768071042941,-151.0,0.00037037,31]
[401247469,1768071042951,-151.0,0.00037037,31]
[401247471,1768071042959,-151.0,0.00037037,31]
[401247473,1768071042969,-151.0,0.00037037,31]
[401247475,1768071042978,-151.0,0.00037037,31]
[401247477,1768071042987,-151.0,0.00037037,31]
[401247479,1768071042997,-151.0,0.00037037,31]
[401247481,1768071043006,-151.0,0.00037037,31]
[401247483,1768071043016,-151.0,0.00037037,31]
[401247486,1768071043025,-151.0,0.00037037,31]
[401247488,1768071043034,-151.0,0.00037037,31]
[401247490,1768071043043,-151.0,0.00037037,31]
[401247491,1768071043055,-242.550437,0.00037037,31]
[401247493,1768071043068,-1112.0,0.00037038,10]
[401247496,1768071043078,-151.0,0.00037038,31]
[401247499,1768071043087,-151.0,0.00037038,31]
[401247501,1768071043096,-151.0,0.00037038,31]
[401247503,1768071043106,-162.614017,0.00037038,31]
[401247505,1768071043115,-151.0,0.00037038,31]
[401247507,1768071043124,-151.0,0.00037038,31]
[401247509,1768071043133,-277.124706,0.00037038,31]
[401247511,1768071043143,-151.0,0.00037038,28]
[401247513,1768071043152,-151.0,0.00037038,28]
[401247514,1768071043161,-151.0,0.00037038,28]
[401247516,1768071043170,-151.0,0.00037038,28]
[401247519,1768071043180,-151.0,0.00037038,28]
[401247520,1768071043189,-151.0,0.00037038,28]
[401247522,1768071043198,-241.887947,0.00037038,28]
[401247524,1768071043207,-315.18853,0.00037038,31]
[401247526,1768071043216,-315.18853,0.00037038,31]
[401247528,1768071043225,-315.18853,0.00037038,31]
[401247530,1768071043236,-315.18853,0.00037038,31]
[401247532,1768071043246,-315.18853,0.00037038,31]
[401247534,1768071043255,-315.18853,0.00037038,31]
[401247536,1768071043264,-315.18853,0.00037038,31]
[401247538,1768071043273,-315.18853,0.00037038,31]
[401247540,1768071043282,-315.18853,0.00037038,31]
[401247542,1768071043291,-315.18853,0.00037038,31]
[401247544,1768071043299,-315.18853,0.00037038,31]
[401247546,1768071043309,-315.18853,0.00037038,31]
[401247548,1768071043318,-315.18853,0.00037038,31]
[401247550,1768071043327,-315.18853,0.00037038,31]